[Event "Titled Tuesday Blitz October 11 Early 2022"]
[White "Ovezdurdyyeva, Jemal"]
[Black "Kuchava, Ana"]
[WhiteFideId "14001888"]
[BlackFideId "13605348"]
[WhiteElo "1961"]
[BlackElo "2001"]
[Result "0-1"]
[Round "11"]
[TimeControl "180+1"]
[Date "2022.10.12"]
[WhiteClock "0:00:33"]
[BlackClock "0:01:32"]

1. e4 {[%clk 0:03:00]}  c5 {[%clk 0:02:58]} 2. Nf3 {[%clk 0:02:59]}  d6 {[%clk 0:02:53]} 3. d4 {[%clk 0:02:58]}  cxd4 {[%clk 0:02:51]} 4. Nxd4 {[%clk 0:02:59]}  Nf6 {[%clk 0:02:50]} 5. Nc3 {[%clk 0:02:59]}  Nc6 {[%clk 0:02:50]} 6. Be3 {[%clk 0:02:53]}  Ng4 {[%clk 0:02:44]} 7. Nxc6 {[%clk 0:02:51]}  bxc6 {[%clk 0:02:43]} 8. Bg5 {[%clk 0:02:42]}  Qb6 {[%clk 0:02:41]} 9. Qd2 {[%clk 0:02:36]}  Qxb2 {[%clk 0:02:33]} 10. Rb1 {[%clk 0:02:33]}  Qa3 {[%clk 0:02:33]} 11. Be2 {[%clk 0:02:23]}  h6 {[%clk 0:02:26]} 12. Bh4 {[%clk 0:02:19]}  g5 {[%clk 0:02:23]} 13. Bg3 {[%clk 0:02:16]}  Bg7 {[%clk 0:02:23]} 14. Rb3 {[%clk 0:02:10]}  Qa5 {[%clk 0:02:14]} 15. O-O {[%clk 0:02:05]}  O-O {[%clk 0:02:13]} 16. h4 {[%clk 0:02:02]}  Be6 {[%clk 0:02:05]} 17. Bxg4 {[%clk 0:01:20]}  Bxb3 {[%clk 0:02:03]} 18. axb3 {[%clk 0:01:13]}  Qxc3 {[%clk 0:02:01]} 19. Qe2 {[%clk 0:01:09]}  Be5 {[%clk 0:01:57]} 20. hxg5 {[%clk 0:00:58]}  hxg5 {[%clk 0:01:54]} 21. f4 {[%clk 0:00:52]}  Qxg3 {[%clk 0:01:38]} 22. fxe5 {[%clk 0:00:50]}  Qxe5 {[%clk 0:01:39]} 23. Rf5 {[%clk 0:00:49]}  Qd4+ {[%clk 0:01:40]} 24. Kh2 {[%clk 0:00:49]}  f6 {[%clk 0:01:41]} 25. Rf3 {[%clk 0:00:46]}  Kg7 {[%clk 0:01:40]} 26. g3 {[%clk 0:00:39]}  Rh8+ {[%clk 0:01:39]} 27. Kg2 {[%clk 0:00:39]}  Qa1 {[%clk 0:01:39]} 28. Bh3 {[%clk 0:00:33]}  g4 {[%clk 0:01:32]} 0-1


[Site "https://www.chess.com"]

[Event "Titled Tuesday Blitz October 11 Early 2022"]
[White "Petesch, Gabriel"]
[Black "Grot, Blazej"]
[WhiteFideId "2032465"]
[BlackFideId "21835845"]
[WhiteElo "2374"]
[BlackElo "1739"]
[Result "1-0"]
[Round "11"]
[TimeControl "180+1"]
[Date "2022.10.12"]
[WhiteClock "0:00:05"]
[BlackClock "0:00:13"]

1. e3 {[%clk 0:02:50]}  e5 {[%clk 0:02:58]} 2. d4 {[%clk 0:02:47]}  exd4 {[%clk 0:02:55]} 3. Nf3 {[%clk 0:02:47]}  dxe3 {[%clk 0:02:54]} 4. Bxe3 {[%clk 0:02:47]}  d6 {[%clk 0:02:54]} 5. Bc4 {[%clk 0:02:47]}  Nf6 {[%clk 0:02:54]} 6. O-O {[%clk 0:02:45]}  Be7 {[%clk 0:02:52]} 7. Nc3 {[%clk 0:02:45]}  O-O {[%clk 0:02:52]} 8. Re1 {[%clk 0:02:45]}  c6 {[%clk 0:02:51]} 9. Bg5 {[%clk 0:02:38]}  d5 {[%clk 0:02:51]} 10. Bd3 {[%clk 0:02:38]}  h6 {[%clk 0:02:51]} 11. Bh4 {[%clk 0:02:38]}  Be6 {[%clk 0:02:50]} 12. Nd4 {[%clk 0:02:38]}  Bg4 {[%clk 0:02:44]} 13. Bxf6 {[%clk 0:02:16]}  Bxd1 {[%clk 0:02:40]} 14. Bxe7 {[%clk 0:02:17]}  Qb6 {[%clk 0:02:38]} 15. Bxf8 {[%clk 0:02:14]}  Qxd4 {[%clk 0:02:18]} 16. Re8 {[%clk 0:02:09]}  Nd7 {[%clk 0:01:33]} 17. Rxa8 {[%clk 0:02:02]}  Nxf8 {[%clk 0:01:33]} 18. Rxd1 {[%clk 0:02:02]}  Qe5 {[%clk 0:01:33]} 19. Rxa7 {[%clk 0:01:48]}  b5 {[%clk 0:01:32]} 20. a3 {[%clk 0:01:46]}  h5 {[%clk 0:01:27]} 21. Ra6 {[%clk 0:01:41]}  Qc7 {[%clk 0:01:21]} 22. Ne2 {[%clk 0:01:36]}  Qb7 {[%clk 0:01:18]} 23. Ra5 {[%clk 0:01:36]}  Ne6 {[%clk 0:01:12]} 24. b3 {[%clk 0:01:25]}  Nc7 {[%clk 0:01:09]} 25. Nd4 {[%clk 0:01:19]}  g6 {[%clk 0:01:02]} 26. b4 {[%clk 0:01:19]}  Kg7 {[%clk 0:00:57]} 27. Re1 {[%clk 0:01:18]}  Qb6 {[%clk 0:00:54]} 28. Nb3 {[%clk 0:01:16]}  Ne6 {[%clk 0:00:51]} 29. g3 {[%clk 0:01:15]}  Ng5 {[%clk 0:00:48]} 30. Kg2 {[%clk 0:01:13]}  h4 {[%clk 0:00:47]} 31. gxh4 {[%clk 0:01:09]}  Ne6 {[%clk 0:00:45]} 32. Nc5 {[%clk 0:01:04]}  Nxc5 {[%clk 0:00:43]} 33. h5 {[%clk 0:00:48]}  gxh5 {[%clk 0:00:40]} 34. Re3 {[%clk 0:00:46]}  Ne6 {[%clk 0:00:38]} 35. Ra8 {[%clk 0:00:41]}  Qc7 {[%clk 0:00:34]} 36. Rg3+ {[%clk 0:00:38]}  Kf6 {[%clk 0:00:34]} 37. Rh8 {[%clk 0:00:36]}  Qe5 {[%clk 0:00:28]} 38. Rh6+ {[%clk 0:00:18]}  Ke7 {[%clk 0:00:27]} 39. Kf1 {[%clk 0:00:16]}  Qa1+ {[%clk 0:00:20]} 40. Kg2 {[%clk 0:00:14]}  Qe5 {[%clk 0:00:19]} 41. Kf1 {[%clk 0:00:13]}  Qa1+ {[%clk 0:00:18]} 42. Kg2 {[%clk 0:00:13]}  Qd4 {[%clk 0:00:18]} 43. Rh7 {[%clk 0:00:10]}  h4 {[%clk 0:00:17]} 44. Re3 {[%clk 0:00:05]}  Qg4+ {[%clk 0:00:16]} 45. Kf1 {[%clk 0:00:05]}  h3 {[%clk 0:00:16]} 46. Rhxh3 {[%clk 0:00:03]}  Qd1+ {[%clk 0:00:16]} 47. Kg2 {[%clk 0:00:04]}  Qg4+ {[%clk 0:00:16]} 48. Rhg3 {[%clk 0:00:04]}  Qh5 {[%clk 0:00:15]} 49. Rgf3 {[%clk 0:00:04]}  Qg6+ {[%clk 0:00:14]} 50. Bxg6 {[%clk 0:00:04]}  fxg6 {[%clk 0:00:13]} 51. Rg3 {[%clk 0:00:05]}  g5 {[%clk 0:00:13]} 52. Rxg5 {[%clk 0:00:05]}  Kf6 {[%clk 0:00:13]} 53. Rg6+ {[%clk 0:00:05]} 1-0


[Site "https://www.chess.com"]

[Event "Titled Tuesday Blitz October 11 Early 2022"]
[White "Pinheiro, Iung Alicio de O."]
[Black "Antonio, Jorge Carlos"]
[WhiteFideId "2104350"]
[BlackFideId "113190"]
[WhiteElo "2283"]
[BlackElo "2247"]
[Result "1-0"]
[Round "11"]
[TimeControl "180+1"]
[Date "2022.10.12"]
[WhiteClock "0:00:10"]
[BlackClock "0:00:02"]

1. e4 {[%clk 0:02:58]}  c5 {[%clk 0:02:59]} 2. Nf3 {[%clk 0:02:58]}  e6 {[%clk 0:02:59]} 3. d3 {[%clk 0:02:56]}  Nc6 {[%clk 0:02:58]} 4. g3 {[%clk 0:02:55]}  g6 {[%clk 0:02:58]} 5. Bg5 {[%clk 0:02:55]}  f6 {[%clk 0:02:48]} 6. Bd2 {[%clk 0:02:48]}  Bg7 {[%clk 0:02:46]} 7. Bg2 {[%clk 0:02:43]}  Nge7 {[%clk 0:02:22]} 8. h4 {[%clk 0:02:34]}  h6 {[%clk 0:01:52]} 9. Be3 {[%clk 0:02:21]}  b6 {[%clk 0:01:46]} 10. O-O {[%clk 0:02:10]}  e5 {[%clk 0:01:45]} 11. c3 {[%clk 0:02:09]}  d5 {[%clk 0:01:42]} 12. exd5 {[%clk 0:02:01]}  Nxd5 {[%clk 0:01:40]} 13. Bc1 {[%clk 0:01:43]}  O-O {[%clk 0:01:35]} 14. Nbd2 {[%clk 0:01:21]}  Bb7 {[%clk 0:01:32]} 15. a4 {[%clk 0:01:19]}  Qc7 {[%clk 0:01:26]} 16. Ng5 {[%clk 0:01:02]}  Qd7 {[%clk 0:01:17]} 17. Ngf3 {[%clk 0:00:36]}  f5 {[%clk 0:01:16]} 18. Nc4 {[%clk 0:00:34]}  Rad8 {[%clk 0:01:11]} 19. Re1 {[%clk 0:00:34]}  Qc7 {[%clk 0:01:06]} 20. Qb3 {[%clk 0:00:34]}  f4 {[%clk 0:01:02]} 21. Kh2 {[%clk 0:00:21]}  Kh7 {[%clk 0:00:55]} 22. a5 {[%clk 0:00:20]}  fxg3+ {[%clk 0:00:49]} 23. fxg3 {[%clk 0:00:20]}  Nf6 {[%clk 0:00:25]} 24. axb6 {[%clk 0:00:19]}  axb6 {[%clk 0:00:21]} 25. Qxb6 {[%clk 0:00:18]}  Ng4+ {[%clk 0:00:15]} 26. Kg1 {[%clk 0:00:17]}  Qxb6 {[%clk 0:00:12]} 27. Nxb6 {[%clk 0:00:18]}  Rxd3 {[%clk 0:00:12]} 28. Nh2 {[%clk 0:00:15]}  Nxh2 {[%clk 0:00:11]} 29. Kxh2 {[%clk 0:00:16]}  Nd8 {[%clk 0:00:09]} 30. Bxb7 {[%clk 0:00:13]}  Nxb7 {[%clk 0:00:09]} 31. Ra7 {[%clk 0:00:13]}  Rf7 {[%clk 0:00:07]} 32. Kg2 {[%clk 0:00:13]}  Rdf3 {[%clk 0:00:06]} 33. Be3 {[%clk 0:00:13]}  h5 {[%clk 0:00:05]} 34. Nc4 {[%clk 0:00:13]}  Nd6 {[%clk 0:00:02]} 35. Rxf7 {[%clk 0:00:10]} 1-0


[Site "https://www.chess.com"]

[Event "Titled Tuesday Blitz October 11 Early 2022"]
[White "Saucey, Michel"]
[Black "Tania, Sachdev"]
[WhiteFideId "601845"]
[BlackFideId "5007844"]
[WhiteElo "2253"]
[BlackElo "2306"]
[Result "0-1"]
[Round "11"]
[TimeControl "180+1"]
[Date "2022.10.12"]
[WhiteClock "0:00:14"]
[BlackClock "0:00:21"]

1. d4 {[%clk 0:03:00]}  Nf6 {[%clk 0:02:59]} 2. Nf3 {[%clk 0:03:00]}  b6 {[%clk 0:02:54]} 3. g3 {[%clk 0:02:59]}  Bb7 {[%clk 0:02:55]} 4. Bg2 {[%clk 0:02:59]}  e6 {[%clk 0:02:55]} 5. c4 {[%clk 0:02:59]}  Be7 {[%clk 0:02:56]} 6. O-O {[%clk 0:02:58]}  O-O {[%clk 0:02:56]} 7. Re1 {[%clk 0:02:56]}  d5 {[%clk 0:02:50]} 8. Ne5 {[%clk 0:02:55]}  Nfd7 {[%clk 0:02:39]} 9. Nxd7 {[%clk 0:02:46]}  Nxd7 {[%clk 0:02:36]} 10. Nc3 {[%clk 0:02:46]}  Nf6 {[%clk 0:02:33]} 11. cxd5 {[%clk 0:02:43]}  exd5 {[%clk 0:02:31]} 12. Bf4 {[%clk 0:02:42]}  Bd6 {[%clk 0:02:27]} 13. Bxd6 {[%clk 0:02:40]}  Qxd6 {[%clk 0:02:27]} 14. e3 {[%clk 0:02:40]}  c5 {[%clk 0:02:18]} 15. dxc5 {[%clk 0:02:40]}  bxc5 {[%clk 0:02:18]} 16. Rc1 {[%clk 0:02:39]}  Rab8 {[%clk 0:02:13]} 17. b3 {[%clk 0:02:38]}  a6 {[%clk 0:02:11]} 18. Na4 {[%clk 0:02:37]}  Rfc8 {[%clk 0:02:10]} 19. Qd2 {[%clk 0:02:28]}  Qe7 {[%clk 0:01:40]} 20. Qa5 {[%clk 0:02:26]}  c4 {[%clk 0:01:38]} 21. Red1 {[%clk 0:01:59]}  cxb3 {[%clk 0:01:27]} 22. axb3 {[%clk 0:01:59]}  Ne4 {[%clk 0:01:26]} 23. Nc3 {[%clk 0:01:41]}  Rc5 {[%clk 0:00:51]} 24. Qa1 {[%clk 0:01:34]}  Rbc8 {[%clk 0:00:48]} 25. Nxe4 {[%clk 0:01:33]}  dxe4 {[%clk 0:00:48]} 26. Rxc5 {[%clk 0:01:30]}  Qxc5 {[%clk 0:00:48]} 27. Qa4 {[%clk 0:00:39]}  Qc2 {[%clk 0:00:42]} 28. Qd4 {[%clk 0:00:28]}  h6 {[%clk 0:00:42]} 29. b4 {[%clk 0:00:26]}  Qe2 {[%clk 0:00:38]} 30. Bf1 {[%clk 0:00:24]}  Qc2 {[%clk 0:00:30]} 31. Bg2 {[%clk 0:00:23]}  Rc4 {[%clk 0:00:25]} 32. Qd8+ {[%clk 0:00:22]}  Kh7 {[%clk 0:00:25]} 33. Rd7 {[%clk 0:00:19]}  Qb1+ {[%clk 0:00:22]} 34. Bf1 {[%clk 0:00:18]}  Rc1 {[%clk 0:00:23]} 35. Rxb7 {[%clk 0:00:16]}  Rxf1+ {[%clk 0:00:22]} 36. Kg2 {[%clk 0:00:16]}  Rg1+ {[%clk 0:00:22]} 37. Kh3 {[%clk 0:00:17]}  Qf1+ {[%clk 0:00:22]} 38. Kg4 {[%clk 0:00:17]}  Qxf2 {[%clk 0:00:22]} 39. Qd7 {[%clk 0:00:14]}  Qf3+ {[%clk 0:00:21]} 40. Kh3 {[%clk 0:00:14]}  Qh5# {[%clk 0:00:21]} 0-1


[Site "https://www.chess.com"]

[Event "Titled Tuesday Blitz October 11 Early 2022"]
[White "Seletsky, Grigory"]
[Black "Heinemann, Josefine"]
[WhiteFideId "14112191"]
[BlackFideId "12900460"]
[WhiteElo "2492"]
[BlackElo "2300"]
[Result "1/2-1/2"]
[Round "11"]
[TimeControl "180+1"]
[Date "2022.10.12"]
[WhiteClock "0:00:02"]
[BlackClock "0:00:17"]

1. e4 {[%clk 0:02:58]}  c6 {[%clk 0:02:56]} 2. d4 {[%clk 0:02:57]}  d5 {[%clk 0:02:56]} 3. Nd2 {[%clk 0:02:57]}  dxe4 {[%clk 0:02:54]} 4. Nxe4 {[%clk 0:02:57]}  Nf6 {[%clk 0:02:55]} 5. Ng3 {[%clk 0:02:56]}  Nbd7 {[%clk 0:02:47]} 6. Nf3 {[%clk 0:02:54]}  e6 {[%clk 0:02:42]} 7. Bd3 {[%clk 0:02:51]}  Be7 {[%clk 0:02:41]} 8. O-O {[%clk 0:02:47]}  O-O {[%clk 0:02:41]} 9. c4 {[%clk 0:02:47]}  b6 {[%clk 0:02:39]} 10. Qe2 {[%clk 0:02:46]}  Bb7 {[%clk 0:02:38]} 11. Bf4 {[%clk 0:02:39]}  c5 {[%clk 0:02:33]} 12. dxc5 {[%clk 0:02:36]}  Nxc5 {[%clk 0:02:32]} 13. Bc2 {[%clk 0:02:36]}  a5 {[%clk 0:02:30]} 14. Rfd1 {[%clk 0:02:34]}  Qc8 {[%clk 0:02:27]} 15. Nd4 {[%clk 0:02:29]}  Rd8 {[%clk 0:02:21]} 16. Ndf5 {[%clk 0:02:05]}  Rxd1+ {[%clk 0:01:55]} 17. Rxd1 {[%clk 0:02:04]}  Bf8 {[%clk 0:01:55]} 18. Nd6 {[%clk 0:01:42]}  Bxd6 {[%clk 0:01:50]} 19. Rxd6 {[%clk 0:01:36]}  Ncd7 {[%clk 0:01:40]} 20. b3 {[%clk 0:01:26]}  Qc5 {[%clk 0:01:37]} 21. Qd2 {[%clk 0:01:22]}  Nf8 {[%clk 0:01:28]} 22. Be3 {[%clk 0:01:19]}  Qa3 {[%clk 0:01:25]} 23. Rxb6 {[%clk 0:01:18]}  Bc8 {[%clk 0:01:18]} 24. Bb1 {[%clk 0:01:11]}  a4 {[%clk 0:01:18]} 25. b4 {[%clk 0:01:02]}  N8d7 {[%clk 0:01:12]} 26. Rb5 {[%clk 0:00:43]}  Ba6 {[%clk 0:01:08]} 27. Ra5 {[%clk 0:00:42]}  Bb7 {[%clk 0:01:01]} 28. Rxa8+ {[%clk 0:00:40]}  Bxa8 {[%clk 0:01:02]} 29. Ne2 {[%clk 0:00:32]}  h6 {[%clk 0:00:53]} 30. Qc3 {[%clk 0:00:30]}  Qxc3 {[%clk 0:00:52]} 31. Nxc3 {[%clk 0:00:30]}  Ne5 {[%clk 0:00:52]} 32. Nxa4 {[%clk 0:00:21]}  Nxc4 {[%clk 0:00:51]} 33. Bc1 {[%clk 0:00:21]}  Bc6 {[%clk 0:00:50]} 34. Nc3 {[%clk 0:00:20]}  Nd5 {[%clk 0:00:48]} 35. Nxd5 {[%clk 0:00:19]}  exd5 {[%clk 0:00:47]} 36. Bc2 {[%clk 0:00:18]}  Nb6 {[%clk 0:00:47]} 37. Bb2 {[%clk 0:00:18]}  f6 {[%clk 0:00:46]} 38. Bd4 {[%clk 0:00:18]}  Na4 {[%clk 0:00:46]} 39. Kf1 {[%clk 0:00:17]}  Kf7 {[%clk 0:00:45]} 40. Ke1 {[%clk 0:00:18]}  Ke6 {[%clk 0:00:46]} 41. Kd2 {[%clk 0:00:18]}  Bb5 {[%clk 0:00:46]} 42. f4 {[%clk 0:00:17]}  Kd6 {[%clk 0:00:43]} 43. g4 {[%clk 0:00:16]}  Ke6 {[%clk 0:00:41]} 44. h4 {[%clk 0:00:15]}  Kd6 {[%clk 0:00:42]} 45. f5 {[%clk 0:00:14]}  Kd7 {[%clk 0:00:41]} 46. g5 {[%clk 0:00:14]}  hxg5 {[%clk 0:00:41]} 47. hxg5 {[%clk 0:00:13]}  Ke7 {[%clk 0:00:42]} 48. gxf6+ {[%clk 0:00:10]}  gxf6 {[%clk 0:00:43]} 49. Ke3 {[%clk 0:00:11]}  Kf7 {[%clk 0:00:43]} 50. Kf4 {[%clk 0:00:11]}  Kg7 {[%clk 0:00:40]} 51. Bb3 {[%clk 0:00:11]}  Bc6 {[%clk 0:00:39]} 52. b5 {[%clk 0:00:10]}  Bxb5 {[%clk 0:00:39]} 53. Bxd5 {[%clk 0:00:11]}  Bd7 {[%clk 0:00:37]} 54. Be6 {[%clk 0:00:09]}  Bc6 {[%clk 0:00:31]} 55. Ke3 {[%clk 0:00:09]}  Bb5 {[%clk 0:00:28]} 56. Kd2 {[%clk 0:00:09]}  Bc6 {[%clk 0:00:27]} 57. Kd3 {[%clk 0:00:09]}  Bb5+ {[%clk 0:00:27]} 58. Bc4 {[%clk 0:00:08]}  Bd7 {[%clk 0:00:27]} 59. Kc2 {[%clk 0:00:08]}  Bxf5+ {[%clk 0:00:26]} 60. Kb3 {[%clk 0:00:09]}  Bd7 {[%clk 0:00:26]} 61. Kb4 {[%clk 0:00:09]}  Kg6 {[%clk 0:00:19]} 62. Bb3 {[%clk 0:00:09]}  f5 {[%clk 0:00:19]} 63. Bxa4 {[%clk 0:00:09]}  Be6 {[%clk 0:00:20]} 64. Bb5 {[%clk 0:00:08]}  f4 {[%clk 0:00:19]} 65. Bd3+ {[%clk 0:00:07]}  Kg5 {[%clk 0:00:19]} 66. Be4 {[%clk 0:00:06]}  Bxa2 {[%clk 0:00:18]} 67. Kc5 {[%clk 0:00:05]}  Kg4 {[%clk 0:00:19]} 68. Kd6 {[%clk 0:00:04]}  f3 {[%clk 0:00:19]} 69. Bf2 {[%clk 0:00:04]}  Kf4 {[%clk 0:00:19]} 70. Bd3 {[%clk 0:00:03]}  Kg4 {[%clk 0:00:18]} 71. Kc5 {[%clk 0:00:03]}  Kh3 {[%clk 0:00:18]} 72. Kd4 {[%clk 0:00:03]}  Kg2 {[%clk 0:00:18]} 73. Ke3 {[%clk 0:00:04]}  Bd5 {[%clk 0:00:18]} 74. Bf5 {[%clk 0:00:03]}  Bc6 {[%clk 0:00:18]} 75. Bd3 {[%clk 0:00:03]}  Bd5 {[%clk 0:00:18]} 76. Bf5 {[%clk 0:00:02]}  Bc6 {[%clk 0:00:18]} 77. Bg4 {[%clk 0:00:02]}  Bd5 {[%clk 0:00:17]} 78. Bxf3+ {[%clk 0:00:02]}  Bxf3 {[%clk 0:00:17]} 1/2-1/2


[Site "https://www.chess.com"]

[Event "Titled Tuesday Blitz October 11 Early 2022"]
[White "Shandrygin, Nikita"]
[Black "D`Arruda, Ricardo D."]
[WhiteFideId "24198668"]
[BlackFideId "100692"]
[WhiteElo "2323"]
[BlackElo "2429"]
[Result "1/2-1/2"]
[Round "11"]
[TimeControl "180+1"]
[Date "2022.10.12"]
[WhiteClock "0:00:06"]
[BlackClock "0:00:59"]

1. e4 {[%clk 0:03:00]}  c5 {[%clk 0:02:51]} 2. Nf3 {[%clk 0:03:00]}  Nc6 {[%clk 0:02:50]} 3. d4 {[%clk 0:02:59]}  cxd4 {[%clk 0:02:50]} 4. Nxd4 {[%clk 0:03:00]}  e5 {[%clk 0:02:50]} 5. Nb5 {[%clk 0:02:59]}  a6 {[%clk 0:02:50]} 6. Nd6+ {[%clk 0:02:59]}  Bxd6 {[%clk 0:02:51]} 7. Qxd6 {[%clk 0:03:00]}  Qe7 {[%clk 0:02:52]} 8. Qd1 {[%clk 0:02:44]}  Nf6 {[%clk 0:02:48]} 9. Nc3 {[%clk 0:02:44]}  d6 {[%clk 0:02:48]} 10. Bg5 {[%clk 0:02:42]}  Be6 {[%clk 0:02:48]} 11. Nd5 {[%clk 0:02:33]}  Bxd5 {[%clk 0:02:47]} 12. exd5 {[%clk 0:02:34]}  Nb8 {[%clk 0:02:46]} 13. Be2 {[%clk 0:02:18]}  h6 {[%clk 0:02:46]} 14. Be3 {[%clk 0:02:18]}  Nbd7 {[%clk 0:02:44]} 15. O-O {[%clk 0:02:18]}  O-O {[%clk 0:02:44]} 16. b4 {[%clk 0:02:16]}  b6 {[%clk 0:02:42]} 17. c4 {[%clk 0:02:16]}  a5 {[%clk 0:02:40]} 18. a3 {[%clk 0:02:15]}  Ra7 {[%clk 0:02:40]} 19. Qd2 {[%clk 0:01:46]}  Rfa8 {[%clk 0:02:29]} 20. Qb2 {[%clk 0:01:46]}  Qd8 {[%clk 0:02:23]} 21. Rfb1 {[%clk 0:01:35]}  Qc7 {[%clk 0:02:20]} 22. h3 {[%clk 0:01:17]}  Kh7 {[%clk 0:02:14]} 23. bxa5 {[%clk 0:01:12]}  Rxa5 {[%clk 0:02:12]} 24. Bxb6 {[%clk 0:01:13]}  Nxb6 {[%clk 0:02:10]} 25. Qxb6 {[%clk 0:01:14]}  Qe7 {[%clk 0:01:53]} 26. Qb7 {[%clk 0:01:06]}  Qf8 {[%clk 0:01:51]} 27. Rb3 {[%clk 0:00:44]}  R5a7 {[%clk 0:01:48]} 28. Qb4 {[%clk 0:00:39]}  Nd7 {[%clk 0:01:48]} 29. Rg3 {[%clk 0:00:34]}  Nc5 {[%clk 0:01:47]} 30. Qd2 {[%clk 0:00:21]}  Qe7 {[%clk 0:01:46]} 31. Qe3 {[%clk 0:00:12]}  Kh8 {[%clk 0:01:45]} 32. Qf3 {[%clk 0:00:05]}  Kg8 {[%clk 0:01:42]} 33. Qf5 {[%clk 0:00:03]}  Qh4 {[%clk 0:01:34]} 34. Rg4 {[%clk 0:00:03]}  Qe7 {[%clk 0:01:33]} 35. h4 {[%clk 0:00:04]}  Rxa3 {[%clk 0:01:31]} 36. Rxa3 {[%clk 0:00:04]}  Rxa3 {[%clk 0:01:31]} 37. h5 {[%clk 0:00:05]}  Ra8 {[%clk 0:01:28]} 38. Kh2 {[%clk 0:00:05]}  Kh8 {[%clk 0:01:26]} 39. Bd1 {[%clk 0:00:06]}  Rf8 {[%clk 0:01:24]} 40. Bc2 {[%clk 0:00:06]}  e4 {[%clk 0:01:21]} 41. Bxe4 {[%clk 0:00:03]}  Nxe4 {[%clk 0:01:21]} 42. Rxe4 {[%clk 0:00:04]}  Qc7 {[%clk 0:01:20]} 43. Qf4 {[%clk 0:00:04]}  Rc8 {[%clk 0:01:17]} 44. g4 {[%clk 0:00:03]}  Qd8 {[%clk 0:01:16]} 45. Kg3 {[%clk 0:00:04]}  Kg8 {[%clk 0:01:14]} 46. Qf5 {[%clk 0:00:02]}  Ra8 {[%clk 0:01:13]} 47. Re3 {[%clk 0:00:02]}  Rc8 {[%clk 0:01:12]} 48. Re4 {[%clk 0:00:01]}  Ra8 {[%clk 0:01:12]} 49. Rf4 {[%clk 0:00:02]}  Ra7 {[%clk 0:01:11]} 50. f3 {[%clk 0:00:03]}  Re7 {[%clk 0:01:11]} 51. Re4 {[%clk 0:00:02]}  Rc7 {[%clk 0:01:09]} 52. Qf4 {[%clk 0:00:02]}  Re7 {[%clk 0:01:05]} 53. Qe3 {[%clk 0:00:03]}  Rxe4 {[%clk 0:01:04]} 54. Qxe4 {[%clk 0:00:04]}  Qc7 {[%clk 0:01:02]} 55. Qf4 {[%clk 0:00:05]}  Qc5 {[%clk 0:01:01]} 56. Qe4 {[%clk 0:00:05]}  Qg1+ {[%clk 0:01:00]} 57. Kf4 {[%clk 0:00:06]}  Qc1+ {[%clk 0:01:00]} 58. Kg3 {[%clk 0:00:06]}  Qg1+ {[%clk 0:01:00]} 59. Kf4 {[%clk 0:00:07]}  Qc1+ {[%clk 0:01:00]} 60. Kg3 {[%clk 0:00:06]}  Qg1+ {[%clk 0:00:59]} 1/2-1/2


[Site "https://www.chess.com"]

[Event "Titled Tuesday Blitz October 11 Early 2022"]
[White "Shimanov, Aleksandr"]
[Black "Baskakov, Egor"]
[WhiteFideId "4198603"]
[BlackFideId "24197866"]
[WhiteElo "2605"]
[BlackElo "2211"]
[Result "1-0"]
[Round "11"]
[TimeControl "180+1"]
[Date "2022.10.11"]
[WhiteClock "0:00:05"]
[BlackClock "0:00:39"]

1. d4 {[%clk 0:02:56]}  Nf6 {[%clk 0:03:00]} 2. e3 {[%clk 0:02:55]}  e6 {[%clk 0:03:00]} 3. f4 {[%clk 0:02:55]}  d5 {[%clk 0:03:01]} 4. Nf3 {[%clk 0:02:54]}  Ne4 {[%clk 0:03:01]} 5. Bd3 {[%clk 0:02:54]}  Bd6 {[%clk 0:03:02]} 6. O-O {[%clk 0:02:53]}  O-O {[%clk 0:03:03]} 7. Nbd2 {[%clk 0:02:48]}  f5 {[%clk 0:03:03]} 8. c4 {[%clk 0:02:45]}  c6 {[%clk 0:03:03]} 9. b3 {[%clk 0:02:45]}  Bd7 {[%clk 0:03:02]} 10. Bb2 {[%clk 0:02:45]}  Be8 {[%clk 0:03:03]} 11. Ne5 {[%clk 0:02:45]}  Nxd2 {[%clk 0:03:00]} 12. Qxd2 {[%clk 0:02:45]}  Nd7 {[%clk 0:03:01]} 13. b4 {[%clk 0:02:23]}  Nxe5 {[%clk 0:02:58]} 14. dxe5 {[%clk 0:02:20]}  Be7 {[%clk 0:02:55]} 15. Bd4 {[%clk 0:02:13]}  g5 {[%clk 0:02:51]} 16. a4 {[%clk 0:02:08]}  Qd7 {[%clk 0:02:40]} 17. Qc3 {[%clk 0:01:58]}  gxf4 {[%clk 0:02:25]} 18. exf4 {[%clk 0:01:55]}  b6 {[%clk 0:02:24]} 19. cxd5 {[%clk 0:01:44]}  Qxd5 {[%clk 0:02:21]} 20. Bc4 {[%clk 0:01:43]}  Qd7 {[%clk 0:02:21]} 21. Rfd1 {[%clk 0:01:42]}  Qc8 {[%clk 0:02:17]} 22. Bb3 {[%clk 0:01:23]}  Bf7 {[%clk 0:02:15]} 23. Rac1 {[%clk 0:01:21]}  Rd8 {[%clk 0:02:07]} 24. h3 {[%clk 0:00:59]}  Qc7 {[%clk 0:01:58]} 25. Kh2 {[%clk 0:00:58]}  Rd7 {[%clk 0:01:57]} 26. Be3 {[%clk 0:00:48]}  Rxd1 {[%clk 0:01:54]} 27. Rxd1 {[%clk 0:00:48]}  Rd8 {[%clk 0:01:51]} 28. Rc1 {[%clk 0:00:49]}  Rc8 {[%clk 0:01:39]} 29. Bd1 {[%clk 0:00:27]}  c5 {[%clk 0:01:37]} 30. b5 {[%clk 0:00:28]}  h5 {[%clk 0:01:35]} 31. Be2 {[%clk 0:00:26]}  h4 {[%clk 0:01:34]} 32. Bf2 {[%clk 0:00:25]}  Rd8 {[%clk 0:01:29]} 33. Bc4 {[%clk 0:00:25]}  Qd7 {[%clk 0:01:22]} 34. Qe1 {[%clk 0:00:12]}  Qd2 {[%clk 0:01:17]} 35. Qxd2 {[%clk 0:00:11]}  Rxd2 {[%clk 0:01:16]} 36. Kg1 {[%clk 0:00:12]}  Kf8 {[%clk 0:01:06]} 37. Kf1 {[%clk 0:00:12]}  Ke8 {[%clk 0:01:07]} 38. Ke1 {[%clk 0:00:10]}  Rd8 {[%clk 0:01:07]} 39. Be3 {[%clk 0:00:07]}  Rc8 {[%clk 0:01:04]} 40. Ra1 {[%clk 0:00:07]}  Kd7 {[%clk 0:01:04]} 41. a5 {[%clk 0:00:07]}  Bd8 {[%clk 0:01:01]} 42. axb6 {[%clk 0:00:07]}  Bxb6 {[%clk 0:01:02]} 43. Kf2 {[%clk 0:00:07]}  Rh8 {[%clk 0:01:01]} 44. Rd1+ {[%clk 0:00:07]}  Ke7 {[%clk 0:01:01]} 45. Rd6 {[%clk 0:00:07]}  Rh6 {[%clk 0:00:56]} 46. Rc6 {[%clk 0:00:05]}  Be8 {[%clk 0:00:52]} 47. Bxc5+ {[%clk 0:00:05]}  Bxc5+ {[%clk 0:00:49]} 48. Rxc5 {[%clk 0:00:06]}  Kd8 {[%clk 0:00:49]} 49. Be2 {[%clk 0:00:06]}  Bd7 {[%clk 0:00:47]} 50. Rc3 {[%clk 0:00:06]}  Rg6 {[%clk 0:00:46]} 51. Ra3 {[%clk 0:00:05]}  Bc8 {[%clk 0:00:40]} 52. Rxa7 {[%clk 0:00:05]}  Bd7 {[%clk 0:00:38]} 53. b6 {[%clk 0:00:05]}  Rg8 {[%clk 0:00:39]} 54. Ra8+ {[%clk 0:00:05]} 1-0


[Site "https://www.chess.com"]